Cogmind - Beta 17 @@@ ROGUE MODE // 2026.08.01 @ 04:36:25 Player: stevie364 Result: Destroyed by G-67 Veteran with Plasma Rifle Performance ------------- Evolutions (7) 3500 Regions Visited (16) 3200 Robots Destroyed (229) 1145 Value Destroyed (7103) 7103 Prototype IDs (27) 540 Alien Tech Used (0) 0 Bonus (2262) 2262 TOTAL SCORE: 17750 Bonus ------- High Alert Combat Kills 351 Follower Combat Kills 1306 Registered with UFD 300 Met Optimus in HQ 500 Friendly Fire -195 Cogmind --------- Core Integrity 0/1300 Matter 204/300 Energy 99/100 System Corruption 6% Temperature Cool (12) Movement Core (50) Location -3/Research Parts ------- > --- POWER (2) -------- (None) > --- PROPULSION (8) --- (None) > --- UTILITY (9) ------ Graphene Brace Authchip [Device] > --- WEAPON (2) ------- (None) > --- INVENTORY (5) ---- Nanoactuators ECM Suite A0-MCA's Component Scanner Heavy Pick Peak State ------------ > --- POWER ------------ Neutrino Core Light Antimatter Reactor > --- PROPULSION ------- Improved Heavy Treads Flexi-carbon Leg Flexi-carbon Leg Flexi-carbon Leg Improved Linear Gravjet Electron Diverter > --- UTILITY ---------- Advanced Power Amplifier Advanced Heat Sink Enhanced Optical Array Long-range Sensor Array Hardened Heavy Armor Plating Graphene Brace Experimental System Shield > --- WEAPON ----------- Long-range Proton Cannon Improved Remote Datajack > --- INVENTORY -------- Light Antimatter Reactor Nanoactuators ECM Suite Authchip [Device] A0-MCA's Component Scanner [Rating: 119] Favorites ----------- Power Micro Nuclear Core Engine Improved Deuterium Engine Power Core Micro Nuclear Core Reactor Light Antimatter Reactor Propulsion Light Treads Treads Light Treads Leg Flexi-carbon Leg Wheel Wheel Hover Unit Gravmag Array Flight Unit Improved Cesium-ion Thruster Utility Hacking Suite Device Seismic Detector Storage High-capacity Storage Unit Processor Improved Signal Interpreter Hackware Hacking Suite Protection Improved Medium Armor Plating Weapon Advanced Beam Cannon Energy Gun Medium Laser Energy Cannon Advanced Beam Cannon Ballistic Gun High-powered Shotgun Ballistic Cannon Hypervelocity Mass Driver Launcher Heavy Missile Launcher Special Weapon Improved Remote Datajack Impact Weapon Hammer Slashing Weapon Katana Piercing Weapon Lance Special Melee Weapon Improved Datajack Build | -11 -10 -9 -9 -8 -7 -7 -7 -7 -5 -5 -5 -4 -4 -4 -4 -3 ------- Run | Yrd Mat Mat Min Mat Fac Sto Rec Scr Fac Upp Upp Fac Was Fac Ext Res Slots Evolved 14 | . . 2 . 2 2 . . . 4 . . 2 . . . 2 Power 1 | . . . . . . . . . . . . 1 . . . . Propulsion 6 | . . 1 . 1 1 . . . 1 . . 1 . . . 1 Utility 7 | . . 1 . 1 1 . . . 3 . . . . . . 1 Weapon . | . . . . . . . . . . . . . . . . . Parts Attached 207 | 7 14 15 2 19 32 12 1 9 21 2 4 20 1 10 22 16 Power 19 | 1 . 2 . 1 5 1 . . 1 . . 1 . 1 5 1 Engine 7 | 1 . 2 . 1 2 . . . . . . . . 1 . . Core 9 | . . . . . 3 1 . . 1 . . 1 . . 3 . Reactor 3 | . . . . . . . . . . . . . . . 2 1 Propulsion 60 | 2 4 4 . 9 13 3 . 1 4 . 1 5 1 2 7 4 Treads 21 | 2 2 3 . 9 4 . . . . . . . . . 1 . Leg 5 | . . . . . . . . . . . . . . . 5 . Wheel 2 | . 2 . . . . . . . . . . . . . . . Hover 8 | . . . . . 2 . . . 1 . . 2 . 1 1 1 Flight 24 | . . 1 . . 7 3 . 1 3 . 1 3 1 1 . 3 Utility 79 | 2 2 6 2 4 8 5 1 3 13 2 1 9 . 6 7 8 Device 35 | 1 1 2 2 . 1 1 1 2 6 1 . 4 . 6 3 4 Storage 4 | 1 1 . . . 1 . . 1 . . . . . . . . Processor 10 | . . 1 . . 2 . . . 4 1 . . . . . 2 Hackware 8 | . . . . . . 3 . . 1 . . 3 . . . 1 Protection 22 | . . 3 . 4 4 1 . . 2 . 1 2 . . 4 1 Artifact . | . . . . . . . . . . . . . . . . . Weapon 49 | 2 8 3 . 5 6 3 . 5 3 . 2 5 . 1 3 3 Energy Gun 4 | 1 2 . . . . . . 1 . . . . . . . . Energy Cannon 6 | . . 1 . 1 . . . 1 1 . . . . . 2 . Ballistic Gun 17 | 1 2 2 . 2 4 . . 1 . . 2 3 . . . . Ballistic Cannon 3 | . . . . . . . . . 1 . . 1 . 1 . . Launcher 8 | . 3 . . 1 . 1 . 1 . . . . . . . 2 Special Weapon 2 | . . . . . . . . . 1 . . . . . 1 . Impact Weapon 1 | . 1 . . . . . . . . . . . . . . . Slashing Weapon 3 | . . . . 1 1 1 . . . . . . . . . . Piercing Weapon 4 | . . . . . . 1 . 1 . . . 1 . . . 1 Special Melee Weapon 1 | . . . . . 1 . . . . . . . . . . . Unidentified Prototypes 14 | . . 3 . . 5 1 . . . . . 2 1 1 . 1 Parts Lost 82 | . 2 2 . . 6 6 . . 8 . 8 6 . 7 11 26 Power 8 | . . . . . 1 . . . . . 1 . . 1 1 4 Propulsion 29 | . 1 1 . . 2 4 . . 1 . 4 2 . 2 4 8 Utility 35 | . 1 1 . . 3 2 . . 6 . 2 3 . 3 3 11 Weapon 10 | . . . . . . . . . 1 . 1 1 . 1 3 3 Highest Loss Streak 10 | . 1 1 . . 3 5 . . 3 . 7 3 . 4 4 10 To Critical Strikes . | . . . . . . . . . . . . . . . . . Average Backups 11 | 1 9 19 19 19 19 15 5 5 5 4 4 4 5 4 4 4 Power . | . 1 1 1 1 1 1 1 . 1 1 1 . . . . . Propulsion 3 | . 3 8 9 7 6 4 1 . . 1 . . . . . . Utility 3 | . . 2 2 3 7 6 3 3 1 1 2 3 4 3 3 3 Weapon 2 | . 3 7 7 6 3 2 . . 1 . . . . . . . Tool/Special . | . . . . . . . . . . . . . . . . . Unused Backups 30 | . 2 10 . 6 3 2 1 1 . . . 2 . 1 . 2 Power 2 | . . 1 . . 1 . . . . . . . . . . . Propulsion 6 | . . 3 . 2 1 . . . . . . . . . . . Utility 8 | . . . . 1 1 1 1 1 . . . 1 . 1 . 1 Weapon 14 | . 2 6 . 3 . 1 . . . . . 1 . . . 1 Tool/Special . | . . . . . . . . . . . . . . . . . Average Slot Usage (%) 91 | . 99 98 100 99 97 93 100 98 92 93 71 79 84 80 79 49 Engine 4 | . 14 11 11 9 5 . . . . . . 4 5 3 . . Core 2 | . . . . . 1 7 7 7 5 5 1 4 5 5 5 2 Treads 17 | . 22 31 33 35 37 24 . . . . . . . . . 2 Leg 2 | . . . . . . . . . . . . . . . 16 3 Flight 9 | . . . . . . 11 38 36 29 28 17 14 21 20 10 3 Device 10 | . 13 11 11 9 7 5 . 1 10 13 7 10 10 11 18 14 Storage 5 | . 14 11 11 9 7 5 . 2 . . . . . . . . Processor 6 | . . 3 . . 8 7 7 3 13 15 17 10 10 7 5 5 Hackware 6 | . . . . . . 8 23 23 12 11 11 12 15 15 6 5 Protection 7 | . . 7 11 17 11 5 7 6 4 4 2 3 5 3 5 . Energy Gun 1 | . 13 1 . . . . . . . . . . . . . . Energy Cannon 3 | . . 9 11 8 5 . . . 2 5 . . . . 1 2 Ballistic Gun 5 | . 12 10 11 8 8 9 . 3 . . 4 2 . . . . Piercing Weapon 1 | . . . . . . . 7 3 3 . . 3 5 4 2 . Peak Build Rating 119 | 7 11 21 21 32 46 48 48 49 77 79 76 108 112 108 119 119 Average Rating 51 | 5 7 16 20 25 40 44 47 46 66 76 48 91 104 99 97 73 On Entrance 51 | . 7 11 19 19 32 41 47 47 48 71 76 39 108 103 94 119 Avg Prop Armor Cover (%) 5 | . 12 . . . . . . 2 5 5 8 4 . 6 4 15 Naked Turns . | . . . . . . . . . . . . . . . . . Heaviest Build 76 | 13 51 61 59 67 76 75 18 40 35 32 30 33 33 35 67 66 Greatest Support 111 | 40 40 60 60 89 111 110 27 27 36 37 37 51 51 49 100 75 Greatest Overweight (x) 5 | . 5 1 . . 1 . . 1 . . 1 1 . 1 1 5 Average Overweight (x) . | . 1 . . . . . . . . . . . . . . . Largest Inventory Capacity 20 | 8 20 20 20 20 20 20 5 15 15 5 5 5 5 5 5 5 Average Capacity 12 | 7 13 20 20 20 20 15 5 8 5 5 5 5 5 5 5 5 Most Carried 20 | 2 20 20 20 20 20 20 5 13 10 5 5 5 5 5 5 5 Average Carried 11 | 1 9 19 19 19 19 15 4 5 4 4 4 4 5 4 4 4 Final Capacity 20 | 8 20 20 20 20 20 5 5 15 5 5 5 5 5 5 5 5 Final Carried 20 | 2 20 19 20 20 20 5 5 11 5 5 5 5 5 5 5 4 Class Distribution -------------------- 26% | Mutant 26% | Scavenger-Mutant 14% | Hacker-Sprinter 13% | Hacker-Scout 10% | Skirmisher Dominant Class ---------------- Mutant | -10/Materials Scavenger-Mutant | -9/Materials Scavenger-Mutant | -9/Mines Scavenger-Mutant | -8/Materials Skirmisher | -7/Factory Mutant | -7/Storage Hacker-Sprinter | -7/Recycling Hacker-Sprinter | -7/Scraptown Hacker-Sprinter | -5/Factory Hacker-Scout | -5/Upper Caves Hacker-Scout | -5/Upper Caves Hacker-Scout | -4/Factory Hacker-Scout | -4/Waste Hacker-Scout | -4/Factory Scavenger-Mutant | -4/Extension Mutant | -3/Research Resources | -11 -10 -9 -9 -8 -7 -7 -7 -7 -5 -5 -5 -4 -4 -4 -4 -3 ----------- Run | Yrd Mat Mat Min Mat Fac Sto Rec Scr Fac Upp Upp Fac Was Fac Ext Res Matter Collected 6626 | 277 258 447 85 422 1424 454 237 128 255 593 93 600 . 349 910 94 Remotely . | . . . . . . . . . . . . . . . . . Salvage Created 9331 | 100 565 779 49 777 2251 669 308 . 736 160 70 597 . 273 965 1032 Parts 482 | 7 49 60 8 32 125 27 10 . 42 9 6 23 . 21 25 38 Haulers Intercepted 18 | . 2 5 . 3 4 1 . . . . . 2 . . 1 . Recyclers Shooed 14 | . 2 2 . 1 3 2 2 . 2 . . . . . . . Parts Field Recycled . | . . . . . . . . . . . . . . . . . Retrieved Matter . | . . . . . . . . . . . . . . . . . Parts Self-Destructed 17 | . . . . . . . . . . 9 8 . . . . . Prevented 1 | . . . . . . . . . . 1 . . . . . . Parts Restored . | . . . . . . . . . . . . . . . . . Kills | -11 -10 -9 -9 -8 -7 -7 -7 -7 -5 -5 -5 -4 -4 -4 -4 -3 ------- Run | Yrd Mat Mat Min Mat Fac Sto Rec Scr Fac Upp Upp Fac Was Fac Ext Res Combat Hostiles Destroyed 134 | . 14 20 . 13 34 5 . . 7 3 3 4 . 6 8 17 Melee 6 | . . . . . . . . . . . . . . . 5 1 Guns 55 | . 9 9 . 5 24 5 . . . . 3 . . . . . Cannons 23 | . . 3 . 4 5 . . . 1 3 . 4 . 2 1 . AOE 42 | . 5 8 . 4 4 . . . 6 . . . . 4 . 11 Classes Destroyed 15 | 2 7 1 . 1 3 . . . . . . . . . 1 . Worker 17 | . 4 . . . 6 1 . . 4 . . . . 1 1 . Builder 12 | . 1 2 . . 2 . . . 2 . . . . 4 . 1 Tunneler 8 | 2 1 . 3 . . . . . . . . 1 . 1 . . Hauler 18 | . 2 5 . 3 4 1 . . . . . 2 . . 1 . Recycler 28 | 1 1 . . 2 8 4 4 . 4 . . 1 . . 1 2 Mechanic 1 | . . . . . 1 . . . . . . . . . . . Operator 4 | . 2 . . . 1 . . . . . . . . 1 . . Watcher 6 | . 1 1 . . 1 . . . 2 . . 1 . . . . Swarmer 42 | . 8 9 . 2 4 . . . 4 . 3 . . 3 . 9 Grunt 44 | . 6 6 . 7 17 2 . . . . . . . 1 5 . Duelist 2 | . . . . 1 . . . . . . . . . . 1 . Sentry 19 | . . 5 . 3 5 2 . . . . . . . . 1 3 Hunter 13 | . . . . . 1 1 . . 2 3 . 2 . . . 4 Programmer 13 | . . . . . 7 . . . 1 . . 2 . 2 . 1 Behemoth 1 | . . . . . . . . . . . . . . . 1 . Thug 1 | . . . . . . . . . . . . . . . 1 . Best Kill Streak 14 | 3 6 7 1 4 10 3 2 . 14 2 2 3 . 8 2 13 Combat Bots Only 10 | . 3 4 . 3 4 2 . . 6 2 2 2 . 3 2 10 Max Kills in Single Turn 7 | 1 2 3 1 2 4 1 1 . 4 1 1 1 . 5 2 7 Gunslinging . | . . . . . . . . . . . . . . . . . Exploded 7 | . 1 2 . 2 4 . . . 2 . . . . 3 . 7 Melee 1 | . . . . . . . . . . . . . . . 1 1 Uniques/NPCs Destroyed . | . . . . . . . . . . . . . . . . . Combat | -11 -10 -9 -9 -8 -7 -7 -7 -7 -5 -5 -5 -4 -4 -4 -4 -3 -------- Run | Yrd Mat Mat Min Mat Fac Sto Rec Scr Fac Upp Upp Fac Was Fac Ext Res Hostile Shots Fired 1575 | . 107 88 . 57 273 204 . . 102 21 115 100 . 162 117 229 Missed 575 | . 25 13 . 13 85 78 . . 41 14 61 47 . 78 38 82 Hits 1000 | . 82 75 . 44 188 126 . . 61 7 54 53 . 84 79 147 Melee 16 | . . . . 1 . . . . . . . . . 7 8 . Projectile 984 | . 82 75 . 43 188 126 . . 61 7 54 53 . 77 71 147 AOE 6 | . . . . . . . . . 4 . . 1 . 1 . . Critical Strikes 36 | . . . . 2 6 . . . . . . 2 . 7 12 7 Actively Blocked 21 | . . . . . . . . . . . . . . 2 12 7 Damage Taken 16029 | . 904 943 . 743 2270 1044 . . 1376 106 794 1125 . 1736 1798 3190 Core 3320 | . 226 169 . 45 158 113 . . 403 . 123 140 . 348 291 1304 Absorbed by Shields 194 | . . . . . . . . . 90 . . . . 15 89 . Redirected to Shielding 102 | . . . . . . . . . . . . . . . . 102 Ignored by Resistances 36 | . . . . 36 . . . . . . . . . . . . Regen/Repaired (Parts) 1049 | . . . . 351 438 . . . 78 . . . . 98 84 . Core Remaining (%) 56 | 100 9 . 57 91 . . . 61 . . 47 . . . 32 . Volleys Fired 628 | 7 93 62 10 40 117 35 1 . 34 32 18 40 . 23 88 28 Largest 2 | 2 2 2 2 2 2 2 1 . 1 1 1 2 . 2 1 1 Hottest 112 | 60 76 93 93 93 96 53 39 . 98 98 51 70 . 112 110 81 Shots Fired 960 | 14 170 117 20 72 225 67 1 . 34 33 18 46 . 27 88 28 Gun 548 | 14 162 66 10 32 168 67 . . . . 17 12 . . . . Cannon 324 | . . 47 10 32 55 . . . 28 33 1 33 . 26 36 23 Launcher 31 | . 8 4 . 8 2 . 1 . 3 . . . . . . 5 Special 57 | . . . . . . . . . 3 . . 1 . 1 52 . Kinetic 549 | 7 77 57 10 32 168 67 . . 12 29 18 45 . 26 1 . Thermal 265 | 7 85 56 10 32 55 . . . 16 4 . . . . . . Explosive 31 | . 8 4 . 8 2 . 1 . 3 . . . . . . 5 Electromagnetic 58 | . . . . . . . . . . . . . . . 35 23 Robot Hit Streak 25 | 5 12 25 4 14 16 16 . . 9 5 3 5 . 4 21 5 Robot Miss Streak 7 | 5 4 4 3 4 7 2 . . 1 2 2 3 . 2 2 2 Penetration Max 2 | . . . . . . . . . 2 . . 1 . . . . Secondary Targets 2 | . 2 . . . . . . . . . . . . . . . Max Gunslinging Chain 1 | . 1 . . . . . . . . . . . . . . . Shots Hit Robots 692 | 8 107 80 14 52 171 54 7 . 16 15 10 31 . 15 87 25 Core Hits 350 | 4 42 35 4 31 116 18 3 . 23 3 6 13 . 12 20 20 Critical Kills 14 | . . 3 . . 1 . . . 3 2 . 3 . 2 . . Critical Parts Destroyed 25 | . 1 1 . . . . . . 4 1 . 13 . 5 . . Critical Strikes 55 | . 7 4 . . 1 1 2 . 7 3 . 17 . 7 5 1 Burn 6 | . 6 . . . . . . . . . . . . . . . Meltdown 3 | . . 2 . . 1 . . . . . . . . . . . Destroy 37 | . 1 2 . . . 1 . . 7 3 . 16 . 7 . . Corrupt 1 | . . . . . . . . . . . . . . . 1 . Impale 8 | . . . . . . . 2 . . . . 1 . . 4 1 Melee Attacks 138 | . 1 . . 3 11 4 11 . 16 . . 26 . 28 27 11 Impact 1 | . 1 . . . . . . . . . . . . . . . Slashing 14 | . . . . 3 7 4 . . . . . . . . . . Piercing 119 | . . . . . . . 11 . 16 . . 26 . 28 27 11 Sneak Attacks 21 | . . . . . 6 1 4 . 2 . . 3 . 1 4 . Combat Hostiles . | . . . . . . . . . . . . . . . . . Follow-up Attacks . | . . . . . . . . . . . . . . . . . Damage Inflicted 20776 | 82 1631 2073 286 1510 4477 1003 440 . 1869 112 150 845 . 1572 1976 2750 Guns 6399 | 82 1093 885 147 575 2421 927 . . . . 150 119 . . . . Cannons 4296 | . . 598 121 450 818 . . . 210 112 . 397 . 260 784 546 Explosions 7360 | . 525 560 . 468 951 . . . 1431 . . . . 1156 262 2007 Melee 2430 | . . . . . 117 62 440 . 228 . . 329 . 156 901 197 Ramming 291 | . 13 30 18 17 170 14 . . . . . . . . 29 . Kinetic 6469 | 48 383 752 147 575 2421 927 . . 210 80 150 516 . 260 . . Thermal 4432 | 34 710 731 121 450 1339 . . . . 32 . . . 753 262 . Explosive 5824 | . 525 560 . 468 430 . . . 1431 . . . . 403 . 2007 Electromagnetic 1330 | . . . . . . . . . . . . . . . 784 546 Impact . | . . . . . . . . . . . . . . . . . Slashing 179 | . . . . . 117 62 . . . . . . . . . . Piercing 2251 | . . . . . . . 440 . 228 . . 329 . 156 901 197 Highest Corruption 16 | . . 5 5 . 7 7 7 . 5 5 . 3 12 13 16 6 Average Corruption 7 | . . 4 5 . 3 7 7 . 4 4 . 2 7 12 13 4 Corruption Purged 5 | . . . . . . . . . . 5 . . . . . . Corruption Blocked . | . . . . . . . . . . . . . . . . . Effects 235 | . . 5 12 . 52 14 5 . 3 11 . 5 1 33 88 6 Message Errors 53 | . . 2 3 . 12 1 1 . . 2 . 1 . 10 20 1 Matter Fused 51 | . . 1 . . 10 5 . . 1 2 . 2 1 8 20 1 Heat Flow Errors 17 | . . . 1 . 4 1 . . . . . . . 3 7 1 Energy Discharges 31 | . . . 1 . 7 1 1 . 1 2 . . . 3 14 1 Parts Rejected 7 | . . 1 . . 1 . . . 1 . . . . 2 1 1 Parts Fused 1 | . . . . . . . . . . . . . . . 1 . Data Loss (minor) 32 | . . 1 3 . 7 2 1 . . 4 . 2 . 1 11 . Data Loss (major) 10 | . . . 1 . 2 . 1 . . . . . . 1 4 1 Misfires 7 | . . . 1 . 2 . . . . 1 . . . 1 2 . Alerts 7 | . . . 1 . 3 1 1 . . . . . . . 1 . Misdirections 9 | . . . . . . . . . . . . . . 4 5 . Weapon Failures 10 | . . . 1 . 4 3 . . . . . . . . 2 . Overload Shots . | . . . . . . . . . . . . . . . . . Overflow Damage 1517 | . 28 48 5 3 90 22 132 . 237 . . . . 471 105 376 Projectiles 47 | . . 12 5 . 20 . . . . . . . . . 10 . Explosions 1054 | . 28 36 . 3 23 . . . 184 . . . . 425 . 355 Melee 416 | . . . . . 47 22 132 . 53 . . . . 46 95 21 Knockbacks 5 | . . . . . 1 . . . . . . 1 . 3 . . Impact 1 | . . . . . 1 . . . . . . . . . . . Kinetic 4 | . . . . . . . . . . . . 1 . 3 . . Secondary . | . . . . . . . . . . . . . . . . . Self-Inflicted Damage 756 | . 49 55 . 147 34 . . . . . . . . 162 39 270 Shots 18 | . 3 2 . 5 2 . . . . . . . . 2 1 3 Rammed 19 | . 5 2 1 1 8 1 . . . . . . . . 1 . Targets Rammed 29 | . 5 2 1 1 15 1 . . . . . . . . 4 . Kicked 3 | . . . . . . . . . . . . . . . 3 . Crushed 7 | . . . . . 7 . . . . . . . . . . . Highest Temperature 405 | 40 325 348 152 405 306 197 236 273 398 123 14 92 2 352 209 273 Average Temperature 87 | 17 93 109 49 89 69 26 105 117 128 35 5 22 1 141 42 78 Received Heat Transfer 2778 | . 285 273 . 315 816 258 . . 126 . . 48 . 175 236 246 Effects 26 | . . 3 . 1 9 . 1 1 2 . . . . 9 . . Shutdowns 5 | . . . . 1 . . . . 1 . . . . 3 . . Energy Bleed 11 | . . . . . 4 . 1 . 1 . . . . 5 . . Interference 9 | . . 3 . . 5 . . 1 . . . . . . . . Short Circuit 1 | . . . . . . . . . . . . . . 1 . . Siege Activations . | . . . . . . . . . . . . . . . . . Martial Activations . | . . . . . . . . . . . . . . . . . Shielding Activations . | . . . . . . . . . . . . . . . . . Robots Disrupted 2 | . . . . . . . . . . . . . . . 2 . Combat Hostiles 2 | . . . . . . . . . . . . . . . 2 . Robots Corrupted 7 | . . . . . . . . . . . . . . . 2 5 Combat Hostiles 6 | . . . . . . . . . . . . . . . 1 5 Parts Fried 6 | . . . . . . . . . . 1 . . . . 1 4 Impact Corruptions 1 | . . . . . . . . . . . . . . . 1 . Robots Melted 4 | . . 2 . . 1 . . . . . . . . . 1 . Combat Hostiles 2 | . . . . . 1 . . . . . . . . . 1 . Parts Melted 10 | . 5 2 . 1 1 . . . . . . . . . 1 . Heat Transferred 7483 | 75 2410 1406 222 814 1706 . . . . 50 . . . 550 250 . Parts Sabotaged . | . . . . . . . . . . . . . . . . . Parts Stolen . | . . . . . . . . . . . . . . . . . Parts Stripped . | . . . . . . . . . . . . . . . . . Power Chain Reactions 1 | . . . . . . . . . . . . . . . 1 . Alert | -11 -10 -9 -9 -8 -7 -7 -7 -7 -5 -5 -5 -4 -4 -4 -4 -3 ------- Run | Yrd Mat Mat Min Mat Fac Sto Rec Scr Fac Upp Upp Fac Was Fac Ext Res Maximum Alert Level 3 | . 1 2 . . 3 1 . . 1 . . . . 2 3 3 Low Security (%) 55 | 100 65 56 100 100 28 13 100 . 27 . . 100 100 73 53 . Level 1 33 | . 34 36 . . 49 86 . . 72 . . . . 9 34 70 Level 2 9 | . . 7 . . 21 . . . . . . . . 16 9 28 Level 3 . | . . . . . 1 . . . . . . . . . 3 1 Level 4 . | . . . . . . . . . . . . . . . . . Level 5 . | . . . . . . . . . . . . . . . . . High Security . | . . . . . . . . . . . . . . . . . Max Security . | . . . . . . . . . . . . . . . . . Peak Influence 731 | 5 261 425 163 167 723 349 197 . 393 . . 90 7 680 728 731 Initial 379 | . . 94 158 . 72 327 58 . . . . 37 7 . 318 379 Average 190 | . 103 161 56 69 297 286 151 . 217 . . 35 4 150 230 395 Influence Increases 8410 | 15 631 705 15 528 1207 232 229 . 770 155 165 420 . 957 1550 831 Destroy 0b10 Robot/C 3320 | . 280 400 . 280 680 100 . . 140 60 60 80 . 120 780 340 Destroy 0b10 Robot/NC 495 | 15 60 40 15 25 115 30 20 . 60 . . 25 . 35 40 15 Destroy Leader 710 | . 56 92 . 76 210 42 . . 24 20 . 26 . 20 74 70 Allied During Kill 354 | . . . . 4 . . . . . . . . . . 350 . Successful Hack 141 | . . 7 . 25 44 . . . 22 . . 29 . 7 7 . Select Force Hacks 180 | . . . . . . . 180 . . . . . . . . . Disable Machine 720 | . 60 60 . 15 60 45 15 . 225 . . 15 . 165 30 30 Destroy Structure 750 | . 55 31 . 58 38 . 14 . 74 . . 50 . 220 74 136 Partial Spotted 300 | . . . . . . . . . 60 . . 135 . 30 30 45 Lose Combat Pursuer 1440 | . 120 75 . 45 60 15 . . 165 75 105 60 . 360 165 195 Influence Decreases 7748 | 15 406 523 422 368 646 802 203 177 385 469 175 461 20 307 1476 893 Entered New Map 2004 | . . 131 249 . 88 394 93 177 . 143 15 24 13 . 332 345 Time Decay 4314 | 15 386 372 173 348 498 198 110 . 295 326 80 387 7 207 634 278 Lost Part 800 | . 20 20 . . 60 60 . . 80 . 80 40 . 70 110 260 Lost Ally 630 | . . . . 20 . 150 . . 10 . . 10 . 30 400 10 Squads Dispatched 67 | . 3 1 . 3 18 5 . . 11 . . 11 . 9 3 3 Investigation 29 | . . 1 . 2 5 2 . . 7 . . 5 . 5 2 . Extermination 14 | . . . . . 7 . . . 2 . . 3 . 1 . 1 Reinforcement 18 | . 3 . . 1 5 . . . 1 . . 3 . 3 . 2 Assault 1 | . . . . . . . . . . . . . . . 1 . Garrison 5 | . . . . . 1 3 . . 1 . . . . . . . Intercept . | . . . . . . . . . . . . . . . . . Searches Triggered . | . . . . . . . . . . . . . . . . . Construction Impeded 4 | . . . . . 2 . . . 1 . . . . 1 . . Haulers Reinforced 4 | . . . . . 3 . . . . . . 1 . . . . Active Scanning Responses . | . . . . . . . . . . . . . . . . . Cargo Convoy Interrupts . | . . . . . . . . . . . . . . . . . Stealth | -11 -10 -9 -9 -8 -7 -7 -7 -7 -5 -5 -5 -4 -4 -4 -4 -3 --------- Run | Yrd Mat Mat Min Mat Fac Sto Rec Scr Fac Upp Upp Fac Was Fac Ext Res Distress Signals 23 | . 4 2 . 2 2 1 . . 4 . . 1 . 2 2 3 Communications Jammed . | . . . . . . . . . . . . . . . . . Distress Signals . | . . . . . . . . . . . . . . . . . Times Spotted 407 | . 43 27 . 29 50 14 . . 50 10 12 26 6 43 57 40 Peak Tracking Total 14 | . 6 4 . 6 7 8 . . 11 5 7 7 6 14 7 10 Tactical Retreats 64 | . 5 2 . 2 4 1 . . 13 5 3 2 . 9 9 9 ECM-based Alert Blocks 28 | . . . . . . . . . 23 5 . . . . . . Traps | -11 -10 -9 -9 -8 -7 -7 -7 -7 -5 -5 -5 -4 -4 -4 -4 -3 ------- Run | Yrd Mat Mat Min Mat Fac Sto Rec Scr Fac Upp Upp Fac Was Fac Ext Res Traps Triggered 23 | . 1 3 . 1 4 1 . . 4 . . 4 . 3 2 . Indirectly . | . . . . . . . . . . . . . . . . . Trap Hack Attempts . | . . . . . . . . . . . . . . . . . Triggered . | . . . . . . . . . . . . . . . . . Disarmed . | . . . . . . . . . . . . . . . . . Reprogrammed . | . . . . . . . . . . . . . . . . . Reused . | . . . . . . . . . . . . . . . . . Traps Extracted . | . . . . . . . . . . . . . . . . . Installed . | . . . . . . . . . . . . . . . . . Triggered . | . . . . . . . . . . . . . . . . . Machines | -11 -10 -9 -9 -8 -7 -7 -7 -7 -5 -5 -5 -4 -4 -4 -4 -3 ---------- Run | Yrd Mat Mat Min Mat Fac Sto Rec Scr Fac Upp Upp Fac Was Fac Ext Res Machines Disabled 48 | . 4 4 . 1 4 3 1 . 15 . . 1 . 11 2 2 Max in Single Turn 5 | . 1 1 . 1 3 1 1 . 4 . . 1 . 5 1 1 Garrison Access 2 | . . . . 1 . . . . . . . . . 1 . . Machines Repaired . | . . . . . . . . . . . . . . . . . Machines Dismantled . | . . . . . . . . . . . . . . . . . Machines Sabotaged . | . . . . . . . . . . . . . . . . . Overloaded Fab Kills . | . . . . . . . . . . . . . . . . . Hacking | -11 -10 -9 -9 -8 -7 -7 -7 -7 -5 -5 -5 -4 -4 -4 -4 -3 --------- Run | Yrd Mat Mat Min Mat Fac Sto Rec Scr Fac Upp Upp Fac Was Fac Ext Res Machines Accessed 80 | . . 3 . 8 14 3 6 4 14 2 . 13 . 7 5 1 Terminals 30 | . . 2 . 4 7 2 . . 4 . . 4 . 2 4 1 Fabricators 2 | . . . . . . . . . . . . 1 . 1 . . Repair Stations 10 | . . . . 1 3 . . . 2 . . 2 . 1 1 . Recycling Units 19 | . . . . 1 . . 6 . 6 . . 4 . 2 . . Scanalyzers 9 | . . 1 . 1 4 . . . 1 . . 2 . . . . Garrison Access 4 | . . . . 1 . 1 . . 1 . . . . 1 . . Total Hacks 186 | . . 8 . 23 36 5 7 10 28 4 . 26 . 22 13 4 Successful 102 | . . 2 . 16 14 1 6 10 19 4 . 14 . 10 4 2 Failed 81 | . . 6 . 7 21 4 1 . 8 . . 11 . 12 9 2 Catastrophic 8 | . . 1 . . 2 . . . 1 . . . . . 4 . Database Lockouts 3 | . . . . . 1 . . . 1 . . 1 . . . . Manual 69 | . . . . 4 6 1 7 . 15 . . 15 . 19 2 . Terminals 85 | . . 5 . 11 17 4 . . 9 . . 9 . 15 11 4 Fabricators 3 | . . . . . . . . . . . . 2 . 1 . . Repair Stations 28 | . . . . 7 9 . . . 6 . . 3 . 1 2 . Recycling Units 29 | . . . . 2 . . 7 . 8 . . 8 . 4 . . Scanalyzers 21 | . . 3 . 2 10 . . . 2 . . 4 . . . . Garrison Access 6 | . . . . 1 . 1 . . 3 . . . . 1 . . Terminal Hacks 43 | . . 1 . 5 2 1 . 10 6 4 . 4 . 6 2 2 Record 12 | . . . . . . . . 9 . 3 . . . . . . Part Schematic 1 | . . . . . . . . . . . . . . 1 . . Robot Analysis 1 | . . . . 1 . . . . . . . . . . . . Open Door 4 | . . . . . . 1 . . . 1 . . . . 2 . Branch Access Points 5 | . . 1 . 2 . . . . 1 . . . . 1 . . Emergency Access Points 2 | . . . . . 1 . . . . . . . . . . 1 Terminal Index 2 | . . . . . . . . . 1 . . . . 1 . . Fabricator Index 1 | . . . . . . . . . 1 . . . . . . . Recycling Unit Index 2 | . . . . . . . . . . . . 1 . 1 . . Scanalyzer Index 1 | . . . . . . . . . 1 . . . . . . . Alert Level 2 | . . . . 1 . . . . . . . . . 1 . . Locate Traps 2 | . . . . . . . . . 2 . . . . . . . Maintenance Status 1 | . . . . . . . . . . . . . . . . 1 Hauler Manifests 3 | . . . . 1 1 . . . . . . 1 . . . . Registered Components 2 | . . . . . . . . . . . . 1 . 1 . . Zone Layout 1 | . . . . . . . . . . . . 1 . . . . Proto ID Catalog 1 | . . . . . . . . 1 . . . . . . . . Fabricator Hacks . | . . . . . . . . . . . . . . . . . Repair Station Hacks 19 | . . . . 6 7 . . . 5 . . 1 . . . . Scan Component 10 | . . . . 3 4 . . . 3 . . . . . . . Repair 8 | . . . . 3 3 . . . 2 . . . . . . . Refit 1 | . . . . . . . . . . . . 1 . . . . Recycling Unit Hacks 1 | . . . . 1 . . . . . . . . . . . . Report Inventory 1 | . . . . 1 . . . . . . . . . . . . Scanalyzer 11 | . . 1 . 2 5 . . . 1 . . 2 . . . . Insert Component 2 | . . . . . 2 . . . . . . . . . . . Analyze 2 | . . . . . 2 . . . . . . . . . . . Retrieve Study 7 | . . 1 . 2 1 . . . 1 . . 2 . . . . Garrison Access Hacks 2 | . . . . 1 . . . . . . . . . 1 . . Seal Access 2 | . . . . 1 . . . . . . . . . 1 . . Unauthorized Hacks 26 | . . . . 1 . . 6 . 7 . . 7 . 3 2 . Terminals 4 | . . . . 1 . . . . 1 . . 1 . . 1 . Track 1 | . . . . . . . . . . . . . . . 1 . Assimilate 2 | . . . . . . . . . 1 . . 1 . . . . Botnet 1 | . . . . 1 . . . . . . . . . . . . Fabricators 3 | . . . . . . . . . . . . 2 . 1 . . Prioritize 1 | . . . . . . . . . . . . 1 . . . . Liberate 1 | . . . . . . . . . . . . 1 . . . . Recompile 1 | . . . . . . . . . . . . . . 1 . . Repair Stations 2 | . . . . . . . . . . . . . . 1 1 . Patch 2 | . . . . . . . . . . . . . . 1 1 . Recycling Units 17 | . . . . . . . 6 . 6 . . 4 . 1 . . Tunnel 6 | . . . . . . . 6 . . . . . . . . . Fedlink 11 | . . . . . . . . . 6 . . 4 . 1 . . Scanalyzers . | . . . . . . . . . . . . . . . . . Garrison Access . | . . . . . . . . . . . . . . . . . Data Cores Recovered 1 | . . . . . . . . . . . . . . 1 . . Used 1 | . . . . . . . . . . . . . . 1 . . Hacking Detections 48 | . . 3 . 6 11 3 1 . 7 . . 9 . 3 4 1 Full Trace Events 12 | . . 1 . 2 4 1 . . 1 . . 1 . 1 1 . Feedback Events 1 | . . . . . . . . . . . . 1 . . . . Hackware Fried 1 | . . . . . . . . . . . . 1 . . . . Feedback Blocked . | . . . . . . . . . . . . . . . . . Robot Schematics Acquired . | . . . . . . . . . . . . . . . . . Robots Built . | . . . . . . . . . . . . . . . . . Authchips . | . . . . . . . . . . . . . . . . . Time . | . . . . . . . . . . . . . . . . . Total Robot Build Rating . | . . . . . . . . . . . . . . . . . Part Schematics Acquired 3 | . . . . . 2 . . . . . . . . 1 . . Parts Built . | . . . . . . . . . . . . . . . . . Authchips . | . . . . . . . . . . . . . . . . . Time . | . . . . . . . . . . . . . . . . . Total Part Build Rating . | . . . . . . . . . . . . . . . . . Part Studies Acquired 7 | . . 1 . 2 1 . . . 1 . . 2 . . . . Parts Repaired 8 | . . . . 3 3 . . . 2 . . . . . . . Time 276 | . . . . 78 98 . . . 100 . . . . . . . Parts Recycled . | . . . . . . . . . . . . . . . . . Recycled Matter . | . . . . . . . . . . . . . . . . . Retrieved Matter . | . . . . . . . . . . . . . . . . . Retrieved Components . | . . . . . . . . . . . . . . . . . Parts Scanalyzed 2 | . . . . . 2 . . . . . . . . . . . Part Schematics Acquired 2 | . . . . . 2 . . . . . . . . . . . Parts Damaged . | . . . . . . . . . . . . . . . . . Bothacking | -11 -10 -9 -9 -8 -7 -7 -7 -7 -5 -5 -5 -4 -4 -4 -4 -3 ------------ Run | Yrd Mat Mat Min Mat Fac Sto Rec Scr Fac Upp Upp Fac Was Fac Ext Res Used RIF Installer . | . . . . . . . . . . . . . . . . . Robots Hacked 11 | . . . . . 1 . . . 2 . . 1 . . 7 . Non-combat 5 | . . . . . 1 . . . 2 . . 1 . . 1 . Combat 6 | . . . . . . . . . . . . . . . 6 . Robot Hacks Applied 16 | . . . . . 4 . . . 2 . . 1 . . 9 . parse_system 11 | . . . . . 2 . . . . . . . . . 9 . no_distress 1 | . . . . . 1 . . . . . . . . . . . find_chute 4 | . . . . . 1 . . . 2 . . 1 . . . . Relay Couplers Released . | . . . . . . . . . . . . . . . . . Fabnet Peak Effective % . | . . . . . . . . . . . . . . . . . Robots Rewired 24 | . . . . . . . . . . . . . . . 24 . Allies Hacked . | . . . . . . . . . . . . . . . . . Hacks Repelled . | . . . . . . . . . . . . . . . . . Allies | -11 -10 -9 -9 -8 -7 -7 -7 -7 -5 -5 -5 -4 -4 -4 -4 -3 -------- Run | Yrd Mat Mat Min Mat Fac Sto Rec Scr Fac Upp Upp Fac Was Fac Ext Res Total Allies 31 | . . . 2 . . . . . 1 . . 1 . . 27 . Largest Group 8 | . . . 2 2 . . . . 1 . . 1 . . 8 1 Highest-Rated Group 354 | . . . 50 50 . . . . 10 . . 45 . . 354 149 Highest-Rated Ally 159 | . . . 31 31 . . . . 10 . . 45 . . 159 149 Initial UFD Resources 85 | . . . . . . . . . 38 60 60 62 80 80 82 85 Total Orders 21 | . . . . . . 2 . . . . . 2 . 1 12 4 STAY 9 | . . . . . . . . . . . . 1 . . 7 1 ROAM 1 | . . . . . . . . . . . . . . . . 1 FOLLOW 6 | . . . . . . . . . . . . 1 . . 5 . EXPLORE 5 | . . . . . . 2 . . . . . . . 1 . 2 Ally Attacks 201 | . . . . 15 . . . . . . . . . . 186 . Total Damage 5956 | . . . . 275 . . . . . . . . . . 5681 . Kills 39 | . . . . 1 . . . . . . . . . . 38 . Allies Corrupted 2 | . . . . . . 2 . . . . . . . . . . Allies Melted 2 | . . . . 1 . . . . . . . . . . 1 . Intel | -11 -10 -9 -9 -8 -7 -7 -7 -7 -5 -5 -5 -4 -4 -4 -4 -3 ------- Run | Yrd Mat Mat Min Mat Fac Sto Rec Scr Fac Upp Upp Fac Was Fac Ext Res Active Infowar (turns) 14502 | 53 1645 914 516 1437 3475 264 . . 779 725 179 1051 27 662 2225 550 Optics 7708 | . . . . . 1641 . . . 771 725 179 1051 27 662 2225 427 Sensors 8075 | . . . . . 2379 264 . . 307 725 179 941 27 648 2118 487 Terrain 357 | . . . 357 . . . . . . . . . . . . . Structural 682 | . . 118 27 . 537 . . . . . . . . . . . Traps 183 | . . . . . . . . . . . . 183 . . . . Seismic 7739 | 53 1645 913 132 1437 966 . . . 390 . . 851 27 662 663 . T.N.C. 283 | . . 283 . . . . . . . . . . . . . . Machine Analysis 719 | . . . . . . . . . 719 . . . . . . . ECM 472 | . . . . . . . . . 308 163 . 1 . . . . Robot Analysis Total 1 | . . . . 1 . . . . . . . . . . . . Derelict Logs Recovered 1 | . . . . . . . . . . 1 . . . . . . Drone Launches 23 | . . . . . . 17 . . . . . . . 4 . 2 Drone Recoveries 4 | . . . . . . 2 . . . . . . . 1 . 1 Exploration | -11 -10 -9 -9 -8 -7 -7 -7 -7 -5 -5 -5 -4 -4 -4 -4 -3 ------------- Run | Yrd Mat Mat Min Mat Fac Sto Rec Scr Fac Upp Upp Fac Was Fac Ext Res Turns Passed 16385 | 160 1688 972 516 1437 3579 408 231 1142 780 725 179 1051 27 662 2225 603 Spaces Moved 16963 | 82 789 384 300 710 1797 212 808 3094 1644 1033 409 1954 82 1384 1710 571 Core 158 | 2 . . . . . . . . . . . . . . . 156 Treads 4073 | 80 529 384 300 710 1797 106 . . . . . . . . 9 158 Legs 930 | . . . . . . . . . . . . . . . 930 . Wheels 260 | . 260 . . . . . . . . . . . . . . . Hover 612 | . . . . . . . . . . . . 327 . . 233 52 Flight 10930 | . . . . . . 106 808 3094 1644 1033 409 1627 82 1384 538 205 Fastest Speed 20 | 50 110 160 160 158 152 24 24 24 20 27 27 29 28 25 30 35 Average Speed 69 | 157 162 171 160 159 157 88 24 33 26 27 32 36 28 28 84 77 Slowest Speed 320 | 160 320 240 160 162 240 154 24 97 29 28 109 131 29 98 190 300 Overloaded Moves . | . . . . . . . . . . . . . . . . . Propulsion Burnouts . | . . . . . . . . . . . . . . . . . Robots Hopped 71 | . . . . . . 4 3 . 25 . 5 17 . 10 4 3 Potential Cave-ins . | . . . . . . . . . . . . . . . . . Cave-ins Triggered . | . . . . . . . . . . . . . . . . . Exploration Rate (%) 57 | 4 81 52 68 53 52 51 91 90 41 75 57 37 82 28 88 20 Regions Visited 16 Branch Regions 7 Pre-discovered Areas 9 | . . . . . . . 6 1 1 1 . . . . . . Known Exits Taken 8 | . . 1 . . 1 1 1 . 1 1 1 . . 1 . . Unknown Exits Taken 6 | 1 1 . 1 1 . . . 1 . . . . . . 1 . Scrap Searched 11 | . . . 1 . . . . 5 . 3 2 . . . . . Spaces Dug 72 | . 1 . . 3 3 . 1 . 15 2 . 22 . 25 . . Terrain Destroyed 491 | . 62 37 . 78 35 . 19 . 37 3 . 32 . 109 11 68 Melee 64 | . 1 . . 3 3 . 1 . 9 . . 22 . 25 . . Projectile 26 | . . . . . . . . . 13 3 . 10 . . . . AOE 401 | . 61 37 . 75 32 . 18 . 15 . . . . 84 11 68 Terrain Rammed . | . . . . . . . . . . . . . . . . . Walls Destroyed . | . . . . . . . . . . . . . . . . . Machines Disabled . | . . . . . . . . . . . . . . . . . Actions | -11 -10 -9 -9 -8 -7 -7 -7 -7 -5 -5 -5 -4 -4 -4 -4 -3 --------- Run | Yrd Mat Mat Min Mat Fac Sto Rec Scr Fac Upp Upp Fac Was Fac Ext Res Total 20369 | 97 1037 594 316 941 2320 366 821 3194 1894 1444 436 2188 84 1574 2384 679 Wait 1946 | . 92 84 1 125 254 73 1 40 140 371 7 135 . 106 473 44 Move 16814 | 81 788 383 299 709 1796 204 802 3093 1594 1032 400 1922 81 1364 1701 565 Hop 63 | . . . . . . 3 2 . 24 . 3 15 . 9 4 3 Pick Up 127 | 2 24 18 2 13 21 4 1 19 6 1 1 7 . 3 1 4 Fast Attach 119 | 7 3 3 . 2 18 1 . 4 12 1 3 18 1 10 24 12 Attach 67 | . 2 3 . 3 13 11 . 6 10 2 1 4 . 2 6 4 Detach 41 | . 3 1 . 1 7 2 . 10 3 2 . 2 . 3 5 2 Swap 154 | . 15 17 2 24 38 9 2 6 16 3 1 6 1 7 6 1 Drop 160 | . 11 21 1 20 30 12 1 16 11 . 2 13 1 4 12 5 Fire 628 | 7 93 62 10 40 117 35 1 . 34 32 18 40 . 23 88 28 Melee 138 | . 1 . . 3 11 4 11 . 16 . . 26 . 28 27 11 Ram 2 | . 1 . . . . . . . . . . . . . 1 . Kick 3 | . . . . . . . . . . . . . . . 3 . Crush 24 | . 4 2 1 1 15 1 . . . . . . . . . . Escape Stasis 42 | . . . . . . . . . 27 . . . . 15 . . Rewire 34 | . . . . . . . . . 1 . . . . . 33 . Trap . | . . . . . . . . . . . . . . . . . Miscellaneous 7 | . . . . . . 7 . . . . . . . . . . Route ------- -11/Scrapyard -10/Materials (discovered 4 exits: *Mat x3 / [*Min]) -9/Materials (discovered 2 exits: *Mat / *Min) -9/Mines (discovered 2 exits: *Mat / [*Exi]) -8/Materials (discovered 2 exits: *Fac x2) -7/Factory (discovered 4 exits: *Fac x2 / *Sto / [*Low]) -7/Storage -7/Recycling (discovered 2 exits: *Fac / *Scr) -7/Scraptown (discovered 2 exits: *Fac x2) -5/Factory (discovered 3 exits: *Fac / *Upp x2) -5/Upper Caves -5/Upper Caves -4/Factory (discovered 2 exits: *Upp / Arm) -4/Waste -4/Factory (discovered 5 exits: Upp x2 / *Ext x2 / Arm) -4/Extension (discovered 2 exits: *Res / [*Cet]) -3/Research History --------- Turn | Location | Event 39 | -11/Scrapyard | Discovered new exit (range 16) 161 | -11/Scrapyard | Entered Materials 314 | -10/Materials | Build established: Mutant 428 | -10/Materials | Discovered new exit (range 15) 713 | -10/Materials | Discovered new exit (range 11) 1044 | -10/Materials | Core integrity fell below 50% 1220 | -10/Materials | Core integrity fell below 20% 1232 | -10/Materials | Discovered new exit (range 16) 1569 | -10/Materials | Discovered new exit (range 5) 1751 | -10/Materials | Build established: Scavenger-Mutant 1849 | -10/Materials | Entered another Materials area 1849 | -9/Materials | Evolved 2 slots: Propulsion x1, Utility x1 1995 | -9/Materials | Identified exit to Mines 2118 | -9/Materials | Discovered new exit (range 16) 2821 | -9/Materials | Entered Mines 3028 | -9/Mines | Received a Rocket Launcher from a helpful Derelict 3108 | -9/Mines | Deemed a non-threat by the Exiles lab entrance 3108 | -9/Mines | Discovered new exit (range 5) 3159 | -9/Mines | Discovered new exit (range 8) 3337 | -9/Mines | Entered Materials 3337 | -8/Materials | Accompanied by 2 allies 3337 | -8/Materials | Evolved 2 slots: Propulsion x1, Utility x1 3342 | -8/Materials | Led the pair of lost Derelicts to an unsafe place 3596 | -8/Materials | Repaired Lgt. Treads 3623 | -8/Materials | Repaired Lgt. Treads 3651 | -8/Materials | Repaired Lgt. Treads 4112 | -8/Materials | Discovered new exit (range 10) 4406 | -8/Materials | Discovered new exit (range 15) 4705 | -8/Materials | Build established: Mutant 4774 | -8/Materials | Entered Factory 4774 | -7/Factory | Evolved 2 slots: Propulsion x1, Utility x1 5785 | -7/Factory | Lost 3 parts (1n2u) 5837 | -7/Factory | Discovered new exit (range 19) 5879 | -7/Factory | Garrison activated, responded to threat 6232 | -7/Factory | Discovered new exit (range 19) 6254 | -7/Factory | Identified exit to Factory 6334 | -7/Factory | Repaired Imp. Treads 6537 | -7/Factory | Build established: Skirmisher 6815 | -7/Factory | Repaired Imp. Medium Armor Plating 6860 | -7/Factory | Repaired Adv. Treads 7195 | -7/Factory | Central database locked down 7686 | -7/Factory | Build established: Mutant 8032 | -7/Factory | Discovered exit to Factory (range 15) 8163 | -7/Factory | Build established: Skirmisher 8251 | -7/Factory | Discovered new exit (range 16) 8351 | -7/Factory | Identified exit to Storage 8353 | -7/Factory | Entered Storage 8548 | -7/Storage | Garrison activated, responded to threat 8654 | -7/Storage | Lost 5 parts (3n2u) 8744 | -7/Storage | Lost 11 allies 8761 | -7/Storage | Used back door to open Recycling access 8761 | -7/Storage | Discovered new exit (range 4) 8761 | -7/Storage | Identified exit to Recycling 8761 | -7/Storage | Entered Recycling 8844 | -7/Recycling | Discovered new exit (range 16) 8848 | -7/Recycling | Scanned before Scraplab entrance 8936 | -7/Recycling | Build established: Hacker-Sprinter 8990 | -7/Recycling | Entered Scraplab 8992 | -7/Recycling | Discovered new exit (range 3) 8992 | -7/Recycling | Identified exit to Scraptown 8992 | -7/Recycling | Entered Scraptown 8992 | -7/Scraptown | System corruption cleaned by C-Scrubber 9051 | -7/Scraptown | Discovered new exit (range 13) 9071 | -7/Scraptown | Visited Assassins FH 9096 | -7/Scraptown | Visited Awakened 9099 | -7/Scraptown | Visited IN-MT5's Study 9104 | -7/Scraptown | Visited SPCMW 9107 | -7/Scraptown | Visited UFD Registry 9107 | -7/Scraptown | Registered with UFD as "Shadowdisc" 9112 | -7/Scraptown | Visited Comm Corps 9180 | -7/Scraptown | Visited Cyclists 9182 | -7/Scraptown | Entered Cyclist Reading Room 9205 | -7/Scraptown | Visited Junk Repository 9213 | -7/Scraptown | Visited Science Guys 9223 | -7/Scraptown | Visited A0-MCA Data Center 9228 | -7/Scraptown | Visited Abandonware Association 9232 | -7/Scraptown | Learned abandonware demo "REVENGE.EXE" 9232 | -7/Scraptown | Learned abandonware demo "MELTYB.EXE" 9240 | -7/Scraptown | Visited Scrap Suit Storage 9248 | -7/Scraptown | Visited Scrapoid Pod Storage 9252 | -7/Scraptown | Visited Scrapoid Research Area 9257 | -7/Scraptown | Visited Curators Association 9266 | -7/Scraptown | Visited Derelict Rescue Squad 9273 | -7/Scraptown | Visited LU-1G1's Boring Crew 9630 | -7/Scraptown | Found Scrapoid Pod 9769 | -7/Scraptown | Given an A+ rating by A0-MCA 9773 | -7/Scraptown | Found A0-MCA's Component Scanner 10054 | -7/Scraptown | Met Optimus 10054 | -7/Scraptown | Accepted into 0bPrime 10070 | -7/Scraptown | Build established: Hacker-Mutant 10107 | -7/Scraptown | Discovered new exit (range 5) 10134 | -7/Scraptown | Entered Factory 10134 | -5/Factory | Evolved 4 slots: Propulsion x1, Utility x3 10161 | -5/Factory | Loaded intel: 8 recycling unit locations 10230 | -5/Factory | Learned location of Protoforge (-2) 10238 | -5/Factory | Discovered new exit (range 13) 10273 | -5/Factory | Identified exit to Upper Caves 10324 | -5/Factory | Spotted B-75 Beast 10352 | -5/Factory | Garrison activated, responded to threat 10380 | -5/Factory | Central database locked down 10450 | -5/Factory | Build established: Hacker-Sprinter 10463 | -5/Factory | Discovered new exit (range 10) 10619 | -5/Factory | Repaired Nuclear Pulse Array 10665 | -5/Factory | Repaired Spear 10885 | -5/Factory | Lost 3 parts (1n2u) 10914 | -5/Factory | Entered Upper Caves 10915 | -5/Upper Caves | Encountered a Warlord checkpoint 10989 | -5/Upper Caves | Lost 3 allies 11098 | -5/Upper Caves | Build established: Hacker-Scout 11159 | -5/Upper Caves | Entered an active Warlord outpost 11163 | -5/Upper Caves | Learned Armory garrison access intel 11319 | -5/Upper Caves | Discovered new exit (range 8) 11639 | -5/Upper Caves | Identified exit to Upper Caves 11639 | -5/Upper Caves | Entered another Upper Caves area 11741 | -5/Upper Caves | Core integrity fell below 50% 11766 | -5/Upper Caves | Lost 7 parts (1p4n2u) 11816 | -5/Upper Caves | Discovered new exit (range 10) 11818 | -5/Upper Caves | Identified exit to Factory 11818 | -5/Upper Caves | Entered Factory 11818 | -4/Factory | Evolved 2 slots: Power x1, Propulsion x1 11819 | -4/Factory | Identified exit to Armory 11821 | -4/Factory | Mak. Hacking Suite fried by hacking feedback 11828 | -4/Factory | Discovered new exit (range 12) 11928 | -4/Factory | Lost 3 parts (1n1u1w) 11953 | -4/Factory | Identified exit to Upper Caves 12180 | -4/Factory | Loaded intel: 8 recycling unit locations 12285 | -4/Factory | Found Prototype Hackware 12323 | -4/Factory | Identified Exp. System Shield 12603 | -4/Factory | Central database locked down 12627 | -4/Factory | Spotted B-86 Titan 12869 | -4/Factory | Manually triggered Chute Trap 12869 | -4/Factory | Sucked down chute 12869 | -4/Factory | Entered Waste 12883 | -4/Waste | Spotted C-40 Crusher 12884 | -4/Waste | EMP discharged 12884 | -4/Waste | System corruption reached 10% 12884 | -4/Waste | Spotted C-40 Crusher 12884 | -4/Waste | Spotted C-40 Crusher 12886 | -4/Waste | Spotted C-40 Crusher 12886 | -4/Waste | Spotted C-40 Crusher 12888 | -4/Waste | Spotted C-40 Crusher 12893 | -4/Waste | Discovered new exit (range 11) 12896 | -4/Waste | Identified exit to Factory 12896 | -4/Waste | Entered Factory 12907 | -4/Factory | Identified exit to Extension 13335 | -4/Factory | Loaded intel: 8 recycling unit locations 13339 | -4/Factory | Noticed UFD Elites at a Recycling Unit 13361 | -4/Factory | Spotted B-86 Titan 13400 | -4/Factory | Lost 3 allies 13424 | -4/Factory | Lost 4 parts (1p1n2u) 13473 | -4/Factory | Lost 3 parts (1n1u1w) 13558 | -4/Factory | Entered Extension 13577 | -4/Extension | Build established: Hacker-Sprinter 13614 | -4/Extension | Spotted B-86 Titan 14024 | -4/Extension | Lost 6 allies 14067 | -4/Extension | Core integrity fell below 50% 14408 | -4/Extension | Rescued a captive Derelict 14409 | -4/Extension | Rescued a captive Derelict 14593 | -4/Extension | Build established: Scavenger-Mutant 15131 | -4/Extension | Spotted B-86 Titan 15145 | -4/Extension | Destroyed B-86 Titan 15168 | -4/Extension | Allies destroyed B-86 Titan 15177 | -4/Extension | Found Unknown Protection 15177 | -4/Extension | Identified Hvy. Reflective Plating 15182 | -4/Extension | Lost 3 allies 15410 | -4/Extension | Rescued A7 15558 | -4/Extension | First assault squad dispatched 15669 | -4/Extension | Lost 4 parts (2n1u1w) 15716 | -4/Extension | Discovered new exit (range 10) 15717 | -4/Extension | Discovered new exit (range 6) 15783 | -4/Extension | Entered Research 15783 | -3/Research | Accompanied by 1 ally (A7) 15783 | -3/Research | Evolved 2 slots: Propulsion x1, Utility x1 15880 | -3/Research | Lost 4 parts (1p2n1u) 16034 | -3/Research | Found Fusion Bomb Launcher 16125 | -3/Research | Build established: Mutant 16130 | -3/Research | Lost 5 parts (1p3u1w) 16137 | -3/Research | Found Fusion Bomb Launcher 16188 | -3/Research | Spotted B-86 Titan 16209 | -3/Research | Core integrity fell below 50% 16241 | -3/Research | Lost 6 parts (2n3u1w) 16348 | -3/Research | Destroyed 10 combat bots 16363 | -3/Research | Core integrity fell below 20% 16386 | -3/Research | Destroyed by G-67 Veteran with Plasma Rifle Last Messages --------------- 16337_ U-05 Engineer builds a Wall. 16337_ Acquired Xenon Bombardment Thruster. 16338_ U-05 Engineer lays Concrete. 16339_ K-01 Serf collects debris. 16339_ U-05 Engineer lays Concrete. 16341_ K-01 Serf collects debris. 16341_ U-05 Engineer lays Concrete. 16343_ U-05 Engineer builds a Wall. 16343_ U-05 Engineer lays Concrete. 16347_ System corrupted: Energy discharge (-18). 16356_ Acquired Prototype Device. 16356_ Identified Prc. Energy Filter. 16356_ Faulty integration triggers heat surge (+313). 16358_ Dropped Faulty Prc. Energy Filter. 16360_ Xenon Bombardment Thruster destroyed. 16366_ ALERT: Security rotation in progress. 16366_ P-80 Master resets G-67 Veteran, system corruption cleaned. Map ----- +----------------------------------------------------+ | ?????????????????????????????????????????????????? | | ?????????????????????????????????????????????????? | | ?????????????????????????????????????????????????? | | ?????????????????????????????????????????????????? | | ?????????????????????????????????????????????????? | | ?????????????????????????????????????????????????? | | ?????????????????????????????????????????????????? | | ?????????????????????????????????????????????????? | | ?????????????????????????????????????????????????? | | ?????????????????????????????????????????????????? | | ?????????????????????????????????????????????????? | | ?????????????????????????????????????????????????? | | ?????????????????????????????????????????????????? | | ?????????????????????????????????????????????????? | | ???????????###?????##????????????????????????????? | | ???????????# ? ! ? #????????????????????????????? | | ???????????# #????????????????????????????? | | ???????????# #????????????????????????????? | | ???????????# #????????????????????????????? | | ???????????# """ #????????????????????????????? | | ???????????# """ #????????????????????????????? | | ???????????# """ #????????????????????????????? | | ???????????? #????????????????????????????? | | ?????????????? ??????????????????????????????? | | ????????????####+#################+??????????????? | | ????######### @ #??????????? | | ????# #??????????? | | ????# +??????????? | | ????# p w w #??????????? | | ????# ###gg ###############??????????? | | ????# #?# g #????????????????????????? | | ????# #?# #????????????????????????? | | ????# #?# #????????????????????????? | | ????# #?# ###########??????????????? | | ???####+##########?# # #??????????????? | | ???# =#????????# + #??????????????? | | ???# #???##???#A # #??????????????? | | ???# #???"" ??# # #??????????????? | | ???# #? "R" ?# #? #??????????????? | | ???# ! # " " ?# #? #??????????????? | | ???# # # #?? #??????????????? | | ???######## # #?? #??????????????? | | ??????????# + #???#######??????????????? | | ??????????# # #????????????????????????? | | ??????????# ?# ##########???????????????? | | ??????????# ???# # #??????????????? | | ??????????########?# # #??????????????? | | ??????????# # # """"" #??????????????? | | ??????????# == # # """"" #??????????????? | | ??????????# == + + """"" #??????????????? | +----------------------------------------------------+ Best States ------------- Heat Dissipation 81 Energy Generation 44 Energy Capacity 525 Matter Stores 300 Matter Capacity 300 Sight Range 22 Robot Scan Range 18 Terrain Scan Range 16 Terrain Scan Density 10 ECM Strength 1 Power Amplification 30 Additional Mass Support 9 Armor Coverage 600 Resistance: TH 10 Propulsion Shielding 66 Melee Speed Boost 30 Evasion (%) 66 Targeting Accuracy 5 Melee Accuracy 6 Recoil Reduction 5 Offensive Hacking 31 Defensive Hacking 16 Authchip Count 1 Item Schematics ----------------- Imp. Flight Unit | -7/Factory | Scanalyzed Imp. Cesium-ion Thruster | -7/Factory | Scanalyzed Weapon Mount | -4/Factory | Hacked Robot Schematics ------------------ None Fabricated ------------ Nothing Repaired ---------- Lgt. Treads | 10% | -8/Materials Lgt. Treads | 12% | -8/Materials Lgt. Treads | 27% | -8/Materials Imp. Treads | 9% | -7/Factory Imp. Medium Armor Plating | 22% | -7/Factory Adv. Treads | 34% | -7/Factory Nuclear Pulse Array | 55% | -5/Factory Spear | 27% | -5/Factory Studied --------- VTOL Module | -9/Materials | Hacked Katana | -8/Materials | Hacked Rocket Launcher | -8/Materials | Hacked Imp. Datajack | -7/Factory | Hacked Mic. Nuclear Core | -5/Factory | Hacked Mic. Fission Core | -4/Factory | Hacked Hyp. Gauss Cannon | -4/Factory | Hacked Alien Tech Used ----------------- None Achievements -------------- Analysis Probe Sniper Challenges ------------ None Game ------ Seed GyrokineticPersonalCutter Manual? 0 Play Time 03:20:31 Cumulative 79.9 hours Start 2026.07.29 @ 05:34:23 End 2026.08.01 @ 04:36:25 Sessions 4 Manual Loads 0 Difficulty Rogue Special Mode None Game No. 42 Rogue 42 Adventurer 0 Explorer 0 Win Type - Total 3 Types 1/0/1/0/0/0/0/1/0/0 Lore% 64 Gallery% 53 Achievement% 46 Wizard Run 0 Options --------- Layout 1 ASCII 0 Keyboard 1 Movement Arrows Keybinds 0 Fullscreen 1 Font 24/Smallcaps Map View 50x35 Zoom Use 0% Tactical HUD 1 Map Filters NONE Filters NONE Steam 1 RUN: 31296d81-790b-416e-8cdb-ec7b00e312cf